fUSD/lending_fUSD_20250811
["ID","MTS","AMOUNT","RATE_DAILY","PERIOD"]
[378628612,1754931038049,-400.0,0.00016438,2]
[378628614,1754931038064,-2077.1,0.00016438,2]
[378628615,1754931038073,-400.0,0.00016438,2]
[378628617,1754931038083,-677.32,0.00016438,2]
[378628618,1754931038092,-400.0,0.00016438,2]
[378628619,1754931038102,-624.27,0.00016438,2]
[378628620,1754931038111,-400.0,0.00016438,2]
[378628621,1754931038120,-594.53,0.00016438,2]
[378628622,1754931038130,-400.0,0.00016438,2]
[378628623,1754931038139,-447.28,0.00016438,2]
[378628624,1754931038148,-469.12,0.00016438,2]
[378628625,1754931038158,-3517.15,0.00016438,2]
[378628626,1754931038168,-400.0,0.00016438,2]
[378628627,1754931038178,-1135.314258,0.00016438,2]
[378628628,1754931038188,-400.0,0.00016438,2]
[378628629,1754931038197,-1535.69,0.00016438,2]
[378628630,1754931038207,-400.0,0.00016438,2]
[378628631,1754931038217,-885.83,0.00016438,2]
[378628632,1754931038226,-500.0,0.00016438,2]
[378628633,1754931038236,-400.0,0.00016438,2]
[378628634,1754931038247,-400.0,0.00016438,2]
[378628635,1754931038258,-456.02,0.00016438,2]
[378628636,1754931038268,-643.86,0.00016438,2]
[378628637,1754931038277,-400.0,0.00016438,2]
[378628638,1754931038286,-303.53696354,0.00016438,2]
[378628639,1754931038300,-96.46303646,0.00016438,2]
[378628640,1754931038309,-759.35379887,0.00016438,2]
[378628641,1754931038337,-272.53620113,0.00016438,2]
[378628642,1754931038346,-400.0,0.00016438,2]
[378628643,1754931038356,-400.0,0.00016438,2]
[378628644,1754931038365,-1036.01,0.00016438,2]
[378628645,1754931038374,-675.86,0.00016438,2]
[378628646,1754931038384,-400.0,0.00016438,2]
[378628647,1754931038394,-871.19,0.00016438,2]
[378628648,1754931038404,-4454.68,0.00016438,2]
[378628649,1754931038414,-268.80704641,0.00016438,2]
[378628650,1754931038427,-131.19295359,0.00016438,2]
[378628651,1754931038437,-462.89,0.00016438,2]
[378628652,1754931038447,-29.75459661,0.00016438,2]
[378628654,1754931038466,-568.29956451,0.00016438,2]
[378628656,1754931038487,-750.81041459,0.00016438,2]
[378628840,1754931040717,-977.79542429,0.00016438,2]
[378628842,1754931040726,-622.68,0.00016438,2]
[378628844,1754931040738,-400.0,0.00016438,2]
[378628846,1754931040747,-2618.3,0.00016438,2]
[378628848,1754931040757,-438.07546932,0.00016438,2]
[378628862,1754931040886,-204.06453068,0.00016438,2]
[378628864,1754931040896,-653.54,0.00016438,2]
[378628866,1754931040905,-986.45,0.00016438,2]
[378628868,1754931040916,-585.2,0.00016438,2]
[378628870,1754931040925,-1442.28,0.00016438,2]
[378628872,1754931040935,-2176.28,0.00016438,2]
[378628874,1754931040944,-610.82,0.00016438,2]
[378628876,1754931040954,-400.0,0.00016438,2]
[378628878,1754931040963,-400.0,0.00016438,2]
[378628880,1754931040972,-900.37,0.00016438,2]
[378628882,1754931040981,-810.19,0.00016438,2]
[378628884,1754931040991,-400.0,0.00016438,2]
[378628886,1754931041000,-516.98,0.00016438,2]
[378628888,1754931041010,-400.0,0.00016438,2]
[378628890,1754931041020,-992.71,0.00016438,2]
[378628892,1754931041030,-400.0,0.00016438,2]
[378628894,1754931041039,-772.22,0.00016438,2]
[378628897,1754931041052,-400.0,0.00016438,2]
[378628899,1754931041062,-400.0,0.00016438,2]
[378628901,1754931041071,-400.0,0.00016438,2]
[378628903,1754931041081,-400.0,0.00016438,2]
[378628905,1754931041091,-767.78,0.00016438,2]
[378628907,1754931041100,-400.0,0.00016438,2]
[378628909,1754931041109,-581.34,0.00016438,2]
[378628911,1754931041119,-400.0,0.00016438,2]
[378628913,1754931041129,-400.0,0.00016438,2]
[378628915,1754931041138,-716.89,0.00016438,2]
[378628917,1754931041148,-550.86,0.00016438,2]
[378628919,1754931041157,-400.0,0.00016438,2]
[378628921,1754931041167,-800.0,0.00016438,2]
[378628923,1754931041176,-621.71,0.00016438,2]
[378628925,1754931041185,-400.0,0.00016438,2]
[378628927,1754931041195,-924.04,0.00016438,2]
[378628929,1754931041204,-400.0,0.00016438,2]
[378628931,1754931041214,-300.0,0.00016438,2]
[378628933,1754931041223,-587.05,0.00016438,2]
[378628935,1754931041232,-783.39,0.00016438,2]
[378628937,1754931041242,-400.0,0.00016438,2]
[378628939,1754931041251,-355.83546932,0.00016438,2]
[378628993,1754931041759,-600.3,0.00016438,2]
[378628995,1754931041771,-332.15453068,0.00016438,2]
[378628997,1754931041780,-400.0,0.00016438,2]
[378628999,1754931041790,-400.0,0.00016438,2]
[378629001,1754931041799,-745.46396964,0.00016438,2]
[378629162,1754931043477,-317.44603036,0.00016438,2]
[378629164,1754931043486,-400.0,0.00016438,2]
[378629166,1754931043496,-485.83,0.00016438,2]
[378629168,1754931043505,-400.0,0.00016438,2]
[378629170,1754931043514,-974.73,0.00016438,2]
[378629172,1754931043523,-590.62,0.00016438,2]
[378629174,1754931043532,-400.0,0.00016438,2]
[378629176,1754931043541,-1247.27,0.00016438,2]
[378629178,1754931043550,-400.0,0.00016438,2]
[378629180,1754931043559,-1187.36,0.00016438,2]
[378629182,1754931043569,-400.0,0.00016438,2]
[378629184,1754931043578,-400.0,0.00016438,2]
[378629186,1754931043587,-3575.6,0.00016438,2]
[378629188,1754931043596,-400.0,0.00016438,2]
[378629190,1754931043605,-1583.2,0.00016438,2]
[378629192,1754931043615,-402.07353504,0.00016438,2]
[378629194,1754931043625,-400.0,0.00016438,2]
[378629196,1754931043633,-400.0,0.00016438,2]
[378629198,1754931043643,-405.31,0.00016438,2]
[378629200,1754931043653,-824.99,0.00016438,2]
[378629202,1754931043662,-400.0,0.00016438,2]
[378629204,1754931043672,-400.0,0.00016438,2]
[378629206,1754931043683,-400.0,0.00016438,2]
[378629208,1754931043692,-400.0,0.00016438,2]
[378629210,1754931043701,-400.0,0.00016438,2]
[378629212,1754931043711,-400.0,0.00016438,2]
[378629214,1754931043720,-413.82,0.00016438,2]
[378629216,1754931043730,-984.31,0.00016438,2]
[378629218,1754931043741,-1986.33,0.00016438,2]
[378629220,1754931043751,-443.72,0.00016438,2]
[378629222,1754931043760,-838.29,0.00016438,2]
[378629224,1754931043769,-534.93,0.00016438,2]
[378629226,1754931043780,-1714.05,0.00016438,2]
[378629228,1754931043790,-407.82,0.00016438,2]
[378629230,1754931043799,-496.56,0.00016438,2]
[378629232,1754931043812,-400.0,0.00016438,2]
[378629234,1754931043822,-400.0,0.00016438,2]
[378629236,1754931043832,-400.0,0.00016438,2]
[378629238,1754931043841,-1521.63,0.00016438,2]
[378629240,1754931043851,-1270.65,0.00016438,2]
[378629242,1754931043861,-400.0,0.00016438,2]
[378629244,1754931043870,-400.0,0.00016438,2]
[378629246,1754931043879,-2761.91,0.00016438,2]
[378629248,1754931043888,-400.0,0.00016438,2]
[378629250,1754931043897,-1900.22,0.00016438,2]
[378629252,1754931043906,-408.97773614,0.00016438,2]
[378629270,1754931044052,-680.89226386,0.00016438,2]
[378629272,1754931044061,-400.0,0.00016438,2]
[378629274,1754931044071,-662.94,0.00016438,2]
[378629276,1754931044080,-400.0,0.00016438,2]
[378629278,1754931044089,-480.62,0.00016438,2]
[378629280,1754931044098,-61.59773614,0.00016438,2]
[378629283,1754931044118,-383.0431476,0.00016438,2]
[378629539,1754931046578,-335.55911626,0.00016438,2]
[378629541,1754931046588,-1272.31810124,0.00016438,2]
[378629546,1754931046618,-358.34189876,0.00016438,2]
[378629548,1754931046629,-244.45810124,0.00016438,2]
[378629553,1754931046665,-155.54189876,0.00016438,2]
[378629555,1754931046676,-924.67,0.00016438,2]
[378629557,1754931046687,-1502.69,0.00016438,2]
[378629559,1754931046698,-400.0,0.00016438,2]
[378629561,1754931046709,-400.0,0.00016438,2]
[378629563,1754931046719,-853.02,0.00016438,2]
[378629565,1754931046732,-536.1,0.00016438,2]
[378629568,1754931046743,-400.0,0.00016438,2]
[378629570,1754931046754,-1806.42,0.00016438,2]
[378629572,1754931046765,-400.0,0.00016438,2]
[378629574,1754931046776,-1074.19,0.00016438,2]
[378629576,1754931046786,-511.28,0.00016438,2]
[378629578,1754931046796,-1008.92,0.00016438,2]
[378629580,1754931046808,-442.23,0.00016438,2]
[378629583,1754931046818,-400.0,0.00016438,2]
[378629585,1754931046828,-400.0,0.00016438,2]
[378629587,1754931046838,-3165.36,0.00016438,2]
[378629589,1754931046849,-400.0,0.00016438,2]
[378629591,1754931046860,-1596.73,0.00016438,2]
[378629593,1754931046870,-588.35,0.00016438,2]
[378629595,1754931046880,-523.0,0.00016438,2]
[378629597,1754931046891,-715.33,0.00016438,2]
[378629600,1754931046902,-400.0,0.00016438,2]
[378629602,1754931046913,-1786.84,0.00016438,2]
[378629604,1754931046923,-400.0,0.00016438,2]
[378629696,1754931047761,-1063.96,0.00016438,2]
[378629699,1754931047785,-400.0,0.00016438,2]
[378629703,1754931047811,-1478.19,0.00016438,2]
[378629706,1754931047833,-2156.59,0.00016438,2]
[378629709,1754931047853,-1059.62,0.00016438,2]
[378629711,1754931047863,-400.0,0.00016438,2]
[378629713,1754931047872,-857.68,0.00016438,2]
[378629715,1754931047881,-1102.12,0.00016438,2]
[378629717,1754931047890,-517.31,0.00016438,2]
[378629719,1754931047900,-1199.24,0.00016438,2]
[378629721,1754931047910,-1120.37,0.00016438,2]
[378629723,1754931047920,-1627.78,0.00016438,2]
[378629725,1754931047930,-400.0,0.00016438,2]
[378629727,1754931047940,-400.0,0.00016438,2]
[378629729,1754931047949,-400.0,0.00016438,2]
[378629731,1754931047958,-930.68,0.00016438,2]
[378629733,1754931047968,-400.0,0.00016438,2]
[378629735,1754931047977,-590.7,0.00016438,2]
[378629737,1754931047986,-1794.8,0.00016438,2]
[378629739,1754931047995,-400.0,0.00016438,2]
[378629741,1754931048004,-400.0,0.00016438,2]
[378629743,1754931048014,-551.98,0.00016438,2]
[378629745,1754931048024,-400.0,0.00016438,2]
[378629747,1754931048034,-403.91,0.00016438,2]
[378629749,1754931048044,-400.0,0.00016438,2]
[378629751,1754931048055,-400.0,0.00016438,2]
[378629752,1754931048064,-434.12,0.00016438,2]
[378629754,1754931048073,-400.0,0.00016438,2]
[378629756,1754931048083,-1901.22,0.00016438,2]
[378629758,1754931048092,-1442.96,0.00016438,2]
[378629760,1754931048102,-874.34,0.00016438,2]
[378629762,1754931048111,-367.97821056,0.00016438,2]
[378629764,1754931048120,-404.12,0.00016438,2]
[378629766,1754931048130,-400.0,0.00016438,2]
[378629768,1754931048139,-400.0,0.00016438,2]
[378629770,1754931048149,-498.45,0.00016438,2]
[378629772,1754931048159,-1105.65,0.00016438,2]
[378629774,1754931048169,-400.0,0.00016438,2]
[378629776,1754931048179,-400.0,0.00016438,2]
[378629778,1754931048190,-400.97,0.00016438,2]
[378629780,1754931048199,-986.43,0.00016438,2]
[378629782,1754931048209,-10661.69,0.00016438,2]
[378629783,1754931048219,-400.0,0.00016438,2]
[378629785,1754931048228,-966.83,0.00016438,2]
[378629787,1754931048238,-587.84,0.00016438,2]
[378629789,1754931048248,-985.36,0.00016438,2]
[378629791,1754931048258,-400.0,0.00016438,2]
[378629793,1754931048268,-400.0,0.00016438,2]
[378629795,1754931048277,-400.0,0.00016438,2]
[378629798,1754931048293,-1174.45,0.00016438,2]
[378629800,1754931048306,-1113.74,0.00016438,2]
[378629802,1754931048316,-400.0,0.00016438,2]
[378629804,1754931048326,-400.0,0.00016438,2]
[378629806,1754931048336,-400.0,0.00016438,2]
[378629808,1754931048346,-834.76,0.00016438,2]
[378629810,1754931048357,-451.52,0.00016438,2]
[378629812,1754931048366,-464.27,0.00016438,2]
[378629814,1754931048376,-400.0,0.00016438,2]
[378629816,1754931048386,-400.0,0.00016438,2]
[378629819,1754931048396,-1156.89,0.00016438,2]
[378629820,1754931048406,-192.08030931,0.00016438,2]
[378629823,1754931048416,-1184.03,0.00016438,2]
[378629825,1754931048425,-400.0,0.00016438,2]
[378629827,1754931048436,-400.0,0.00016438,2]
[378629828,1754931048447,-1067.5,0.00016438,2]
[378629830,1754931048457,-1150.78,0.00016438,2]
[378629833,1754931048467,-400.0,0.00016438,2]
[378629835,1754931048476,-3483.53,0.00016438,2]
[378629837,1754931048486,-400.0,0.00016438,2]
[378629839,1754931048496,-513.75,0.00016438,2]
[378629841,1754931048506,-447.45,0.00016438,2]
[378629843,1754931048515,-2195.04,0.00016438,2]
[378629844,1754931048525,-468.88,0.00016438,2]
[378629847,1754931048536,-616.61,0.00016438,2]
[378629849,1754931048545,-518.77,0.00016438,2]
[378629850,1754931048555,-400.0,0.00016438,2]
[378629852,1754931048567,-400.0,0.00016438,2]
[378629854,1754931048577,-448.75,0.00016438,2]
[378629857,1754931048586,-1503.47,0.00016438,2]
[378629858,1754931048596,-771.69,0.00016438,2]
[378629860,1754931048605,-400.0,0.00016438,2]
[378629862,1754931048615,-1001.1,0.00016438,2]
[378629864,1754931048626,-400.0,0.00016438,2]
[378629866,1754931048635,-400.0,0.00016438,2]
[378629868,1754931048645,-1183.54,0.00016438,2]
[378629870,1754931048655,-400.0,0.00016438,2]
[378629872,1754931048667,-2819.22,0.00016438,2]
[378629874,1754931048677,-400.0,0.00016438,2]
[378629876,1754931048687,-400.0,0.00016438,2]
[378629878,1754931048697,-702.16,0.00016438,2]
[378629880,1754931048706,-1137.58,0.00016438,2]
[378629882,1754931048716,-1022.46,0.00016438,2]
[378629884,1754931048725,-400.0,0.00016438,2]
[378629886,1754931048738,-1813.28,0.00016438,2]
[378629888,1754931048752,-1231.58,0.00016438,2]
[378629890,1754931048762,-876.36,0.00016438,2]
[378629892,1754931048771,-1091.76,0.00016438,2]
[378629895,1754931048782,-802.66,0.00016438,2]
[378629896,1754931048792,-400.0,0.00016438,2]
[378629898,1754931048801,-844.92,0.00016438,2]
[378629900,1754931048811,-424.58,0.00016438,2]
[378629902,1754931048821,-1087.56,0.00016438,2]
[378629904,1754931048831,-400.0,0.00016438,2]
[378629906,1754931048840,-408.56,0.00016438,2]
[378629908,1754931048851,-610.06,0.00016438,2]
[378629910,1754931048860,-981.64,0.00016438,2]
[378629912,1754931048871,-400.0,0.00016438,2]
[378629914,1754931048880,-423.88431982,0.00016438,2]
[378629916,1754931048890,-400.0,0.00016438,2]
[378629918,1754931048900,-400.0,0.00016438,2]
[378629920,1754931048909,-468.43,0.00016438,2]
[378629922,1754931048919,-2682.2,0.00016438,2]
[378629924,1754931048928,-1766.49,0.00016438,2]
[378629926,1754931048939,-150.0,0.00016438,2]
[378629928,1754931048949,-597.04,0.00016438,2]
[378629930,1754931048959,-443.67365024,0.00016438,2]
[378629932,1754931048969,-400.0,0.00016438,2]
[378629934,1754931048979,-400.0,0.00016438,2]
[378629936,1754931048989,-400.0,0.00016438,2]
[378629939,1754931048999,-400.0,0.00016438,2]
[378629940,1754931049011,-400.0,0.00016438,2]
[378629942,1754931049020,-400.0,0.00016438,2]
[378629945,1754931049031,-1653.63,0.00016438,2]
[378629947,1754931049041,-400.0,0.00016438,2]
[378629948,1754931049051,-407.57,0.00016438,2]
[378629950,1754931049061,-449.49,0.00016438,2]
[378629953,1754931049072,-493.13,0.00016438,2]
[378629954,1754931049082,-944.01,0.00016438,2]
[378629956,1754931049092,-579.6,0.00016438,2]
[378629958,1754931049102,-400.0,0.00016438,2]
[378629960,1754931049112,-400.0,0.00016438,2]
[378629962,1754931049122,-701.95,0.00016438,2]
[378629964,1754931049131,-400.0,0.00016438,2]
[378629966,1754931049141,-1712.23,0.00016438,2]
[378629968,1754931049151,-400.0,0.00016438,2]
[378629970,1754931049161,-400.0,0.00016438,2]
[378629972,1754931049171,-2537.94,0.00016438,2]
[378629974,1754931049181,-400.0,0.00016438,2]
[378629976,1754931049191,-400.0,0.00016438,2]
[378629978,1754931049200,-400.0,0.00016438,2]
[378629980,1754931049210,-400.0,0.00016438,2]
[378629982,1754931049220,-400.0,0.00016438,2]
[378629984,1754931049230,-443.27,0.00016438,2]
[378629986,1754931049240,-1335.74,0.00016438,2]
[378629988,1754931049251,-1395.63,0.00016438,2]
[378629990,1754931049260,-1115.03,0.00016438,2]
[378629992,1754931049270,-400.0,0.00016438,2]
[378629994,1754931049280,-3237.43,0.00016438,2]
[378629996,1754931049289,-1000.0,0.00016438,2]
[378629998,1754931049299,-400.0,0.00016438,2]
[378630000,1754931049308,-4649.51,0.00016438,2]
[378630002,1754931049318,-1116.62,0.00016438,2]
[378630004,1754931049327,-409.06,0.00016438,2]
[378630005,1754931049336,-653.23,0.00016438,2]
[378630006,1754931049345,-1421.39,0.00016438,2]
[378630007,1754931049354,-400.0,0.00016438,2]
[378630008,1754931049363,-822.72,0.00016438,2]
[378630009,1754931049372,-1020.33,0.00016438,2]
[378630010,1754931049381,-400.0,0.00016438,2]
[378630011,1754931049390,-150.83765072,0.00016438,2]
[378630012,1754931049399,-3413.57,0.00016438,2]
[378630013,1754931049408,-165.21073519,0.00016438,2]
[378630014,1754931049417,-400.0,0.00016438,2]
[378630015,1754931049426,-400.0,0.00016438,2]
[378630016,1754931049435,-400.0,0.00016438,2]
[378630017,1754931049444,-400.0,0.00016438,2]
[378630018,1754931049454,-738.24,0.00016438,2]
[378630019,1754931049465,-400.0,0.00016438,2]
[378630020,1754931049474,-430.74,0.00016438,2]
[378630021,1754931049483,-778.22,0.00016438,2]
[378630022,1754931049492,-500.0,0.00016473,2]
[378630023,1754931049502,-500.0,0.00016473,2]
[378630024,1754931049511,-348.1051214,0.00016473,2]
[378630025,1754931049520,-500.0,0.00016473,2]
[378630026,1754931049530,-500.0,0.00016473,2]
[378630027,1754931049539,-500.0,0.00016473,2]
[378630028,1754931049548,-500.0,0.00016473,2]
[378630029,1754931049557,-500.0,0.00016473,2]
[378630030,1754931049566,-500.0,0.00016473,2]
[378630031,1754931049576,-2264.10087163,0.00016483,2]
[378630032,1754931049585,-2825.02212237,0.00016512,2]
[378630033,1754931049595,-3333.52028843,0.00016521,2]
[378630034,1754931049604,-535.05811149,0.00016575,2]
[378630035,1754931049613,-300.0,0.000166,6]
[378630036,1754931049623,-400.0,0.0001661,2]
[378630038,1754931049633,-416.66,0.0001661,2]
[378630040,1754931049642,-2732.83,0.0001661,2]
[378630042,1754931049651,-2622.53,0.0001661,2]
[378630044,1754931049660,-1497.42,0.0001661,2]
[378630046,1754931049670,-1367.3,0.0001661,2]
[378630048,1754931049681,-914.8,0.0001661,2]
[378630050,1754931049690,-1452.62,0.0001661,2]
[378630051,1754931049699,-559.31,0.0001661,2]
[378630053,1754931049709,-1205.77,0.0001661,2]
[378630055,1754931049718,-1926.1,0.0001661,2]
[378630057,1754931049728,-2764.97,0.0001661,2]
[378630059,1754931049740,-2382.96,0.0001661,2]
[378630061,1754931049749,-2087.49,0.0001661,2]
[378630063,1754931049758,-1270.8,0.0001661,2]
[378630065,1754931049768,-1571.27,0.0001661,2]
[378630066,1754931049778,-992.84,0.0001661,2]
[378630067,1754931049788,-400.0,0.00016611,2]
[378630068,1754931049797,-400.0,0.00016611,2]
[378630069,1754931049807,-400.0,0.00016611,2]
[378630070,1754931049817,-400.0,0.00016611,2]
[378630071,1754931049826,-530.2,0.00016611,2]
[378630072,1754931049836,-400.0,0.00016611,2]
[378630073,1754931049845,-516.43,0.00016611,2]
[378630074,1754931049855,-400.0,0.00016611,2]
[378630075,1754931049864,-400.0,0.00016611,2]
[378630076,1754931049874,-400.0,0.00016611,2]
[378630077,1754931049884,-400.0,0.00016611,2]
[378630078,1754931049893,-542.6,0.00016611,2]
[378630079,1754931049905,-453.08,0.00016611,2]
[378630080,1754931049915,-400.0,0.00016611,2]
[378630081,1754931049925,-400.0,0.00016611,2]
[378630082,1754931049934,-400.0,0.00016611,2]
[378630083,1754931049943,-400.0,0.00016611,2]
[378630084,1754931049952,-400.0,0.00016611,2]
[378630085,1754931049962,-400.0,0.00016611,2]
[378630086,1754931049971,-400.0,0.00016611,2]
[378630087,1754931049980,-400.0,0.00016611,2]
[378630088,1754931049989,-400.0,0.00016611,2]
[378630089,1754931049999,-400.0,0.00016611,2]
[378630090,1754931050008,-400.0,0.00016611,2]
[378630091,1754931050018,-400.0,0.00016611,2]
[378630092,1754931050027,-400.0,0.00016611,2]
[378630093,1754931050036,-400.0,0.00016611,2]
[378630094,1754931050046,-400.0,0.00016611,2]
[378630095,1754931050055,-400.0,0.00016611,2]
[378630096,1754931050065,-400.0,0.00016611,2]
[378630097,1754931050075,-400.0,0.00016611,2]
[378630098,1754931050085,-400.0,0.00016611,2]
[378630099,1754931050095,-400.0,0.00016611,2]
[378630100,1754931050104,-402.55370963,0.00016611,2]
[378630101,1754931050113,-400.0,0.00016611,2]
[378630102,1754931050123,-400.0,0.00016611,2]
[378630103,1754931050133,-400.0,0.00016611,2]
[378630104,1754931050142,-1275.0,0.00016611,2]
[378630105,1754931050152,-1842.8,0.00016611,2]
[378630106,1754931050161,-457.87080987,0.00016645,2]
[378630107,1754931050170,-211.73953792,0.00016645,2]
[378630108,1754931050180,-842.86497659,0.00016645,2]
[378630109,1754931050190,-2825.02212237,0.00016685,2]
[378630110,1754931050200,-600.0,0.000167,6]
[378630111,1754931050209,-3333.52028843,0.00016703,2]
[378630112,1754931050219,-150.0,0.00016711,2]
[378630113,1754931050228,-500.0,0.00016711,2]
[378630115,1754931050238,-500.0,0.00016711,2]
[378630117,1754931050248,-500.0,0.00016711,2]
[378630119,1754931050258,-500.0,0.00016711,2]
[378630120,1754931050267,-400.0,0.00016712,2]
[378630123,1754931050277,-553.42,0.00016712,2]
[378630125,1754931050287,-353.29699845,0.00016712,2]
[378630128,1754931050305,-46.70300155,0.00016712,2]
[378630129,1754931050317,-581.98,0.00016712,2]
[378630131,1754931050327,-439.67,0.00016712,2]
[378630132,1754931050337,-400.0,0.00016712,2]
[378630133,1754931050347,-400.0,0.00016712,2]
[378630134,1754931050357,-400.0,0.00016712,2]
[378630135,1754931050367,-400.0,0.00016712,2]
[378630136,1754931050377,-400.0,0.00016712,2]
[378630137,1754931050387,-400.0,0.00016712,2]
[378630138,1754931050397,-400.0,0.00016712,2]
[378630139,1754931050406,-407.86,0.00016712,2]
[378630140,1754931050415,-400.0,0.00016712,2]
[378630141,1754931050425,-400.0,0.00016712,2]
[378630142,1754931050434,-239.29399841,0.00016712,2]
[378630143,1754931050450,-160.70600159,0.00016712,2]
[378630144,1754931050459,-400.0,0.00016712,2]
[378630145,1754931050468,-285.0269335,0.00016712,2]
[378630146,1754931050480,-114.9730665,0.00016712,2]
[378630147,1754931050490,-400.0,0.00016712,2]
[378630148,1754931050499,-400.0,0.00016712,2]
[378630149,1754931050509,-6.24325752,0.00016712,2]
[378630150,1754931050521,-393.75674248,0.00016712,2]
[378630151,1754931050530,-400.0,0.00016712,2]
[378630152,1754931050539,-400.0,0.00016712,2]
[378630153,1754931050549,-400.0,0.00016712,2]
[378630154,1754931050558,-400.0,0.00016712,2]
[378630155,1754931050567,-400.0,0.00016712,2]
[378630156,1754931050576,-426.13,0.00016712,2]
[378630157,1754931050586,-400.0,0.00016712,2]
[378630158,1754931050595,-411.10253585,0.00016712,2]
[378630159,1754931050604,-400.0,0.00016712,2]
[378630160,1754931050614,-400.0,0.00016712,2]
[378630161,1754931050623,-450.89,0.00016712,2]
[378630162,1754931050632,-459.2,0.00016712,2]
[378630163,1754931050643,-400.0,0.00016712,2]
[378630164,1754931050653,-461.72,0.00016712,2]
[378630165,1754931050662,-400.0,0.00016712,2]
[378630166,1754931050672,-400.0,0.00016712,2]
[378630167,1754931050681,-118.69162014,0.00016712,2]
[378630174,1754931075731,509.0,0.00015842,2]
[378630176,1754931087036,275.21,0.00013699,2]
[378630178,1754931272025,170.0,0.00015757,7]
[378630179,1754931277881,150.34,0.00015778,2]
[378630180,1754931304707,166.0,0.00016004,2]
[378630181,1754931478937,251.47,0.00015937,2]
[378630184,1754931795564,509.0,0.00015141,2]
[378630186,1754931825512,1165.3,0.00015598,2]
[378630187,1754931851506,308.712627,0.00015939,2]
[378630189,1754931954672,250.0,0.00015555,2]
[378630190,1754932063036,261.44,0.00013699,2]
[378630193,1754932106866,1000.0,0.00015531,2]
[378630197,1754932158510,509.0,0.00015501,2]
[378630200,1754932181159,170.0,0.00015555,7]
[378630204,1754932227764,222.63,0.00015671,2]
[378630207,1754932232409,-300.0,0.00016173,2]
[378630208,1754932232419,-1200.0,0.00016173,2]
[378630209,1754932232429,-250.0,0.00016174,2]
[378630210,1754932232439,-229.99059026,0.00016174,2]
[378630211,1754932232448,-220.00940674,0.00016174,2]
[378630212,1754932232473,-42.05697591,0.00016174,2]
[378630213,1754932232483,-254.15525036,0.00016174,2]
[378630214,1754932232571,-117.7839871,0.00016174,2]
[378630215,1754932232580,-500.0,0.00016174,2]
[378630216,1754932232589,-500.0,0.00016174,2]
[378630217,1754932232599,-159.66151947,0.00016174,2]
[378630300,1754932238310,-58.68793988,0.00016174,2]
[378630301,1754932238319,-150.0,0.00016175,2]
[378630302,1754932238329,-150.0,0.00016175,2]
[378630303,1754932238339,-150.0,0.00016175,2]
[378630304,1754932238348,-150.0,0.00016175,2]
[378630305,1754932238358,-150.0,0.00016175,2]
[378630306,1754932238368,-150.0,0.00016175,2]
[378630307,1754932238377,-270.62588641,0.00016175,2]
[378630308,1754932238387,-150.0,0.00016175,2]